bitfinex/quotes_ETHUSD_20250824
["timestamp","ask_amount","ask_price","bid_price","bid_amount"]
[1756038238240,0.002,4761.3,4761.2,2.76031084]
[1756038238427,0.2952,4761.3,4761.2,6.40211084]
[1756038238741,0.7498,4761.3,4761.2,6.40211084]
[1756038242738,0.7498,4761.3,4761.2,9.72001081]
[1756038245263,0.7498,4761.3,4761.2,3.42269997]
[1756038245450,0.7498,4761.3,4761.2,3.533]
[1756038247572,1.03878935,4761.3,4761.2,3.534]
[1756038249994,0.7498,4761.3,4761.0,0.66]
[1756038250163,0.7498,4761.3,4760.8,3.33789997]
[1756038250164,0.2952,4761.3,4761.1,3.533]
[1756038250487,0.4546,4761.2,4761.1,3.533]
[1756038250662,0.7478,4761.2,4761.1,3.533]
[1756038252696,0.7478,4761.2,4760.7,1.616]
[1756038252894,0.4546,4761.1,4760.0,1.615]
[1756038253064,2.10054472,4760.7,4760.1,3.531]
[1756038253398,0.2932,4760.2,4760.1,4.191]
[1756038253799,0.7478,4760.2,4760.1,3.531]
[1756038254170,0.7478,4760.2,4760.1,4.191]
[1756038256400,2.10088447,4759.9,4759.8,0.021]
[1756038256701,2.39408447,4759.9,4759.8,3.552]
[1756038257004,5.84868447,4759.9,4759.8,3.554]
[1756038257202,6.30225271,4759.9,4759.8,0.021]
[1756038258474,5.84868447,4759.9,4759.8,0.021]
[1756038258714,6.51554189,4759.9,4759.8,0.021]
[1756038263029,7.14733089,4759.9,4759.8,0.021]
[1756038263198,7.13293089,4759.9,4759.8,0.021]
[1756038264396,7.46176446,4759.9,4759.8,0.021]
[1756038269210,37.46176446,4759.9,4759.8,1e-08]
[1756038269402,37.91295818,4759.9,4759.8,1e-08]
[1756038269729,37.58412461,4759.9,4759.8,1e-08]
[1756038273506,37.91299389,4759.9,4759.8,1e-08]
[1756038273919,41.44199389,4759.9,4759.8,1e-08]
[1756038274900,41.63781497,4759.9,4759.8,1e-08]
[1756038275594,41.63781497,4759.9,4759.8,0.00100001]
[1756038276219,41.63781497,4759.9,4759.8,1e-08]
[1756038278401,42.20327813,4759.9,4759.8,1e-08]
[1756038279415,41.63781497,4759.9,4759.8,1e-08]
[1756038279614,41.30894569,4759.9,4759.8,1e-08]
[1756038280434,2.10097275,4759.7,4758.8,0.461]
[1756038280726,2.10114932,4759.3,4759.1,0.44]
[1756038280926,9.08134304,4759.3,4759.2,0.3027]
[1756038281507,9.08134304,4759.3,4759.2,0.001]
[1756038281702,9.54234304,4759.3,4759.2,0.001]
[1756038283235,9.73886713,4759.3,4759.2,0.001]
[1756038283399,10.40572455,4759.3,4759.2,0.001]
[1756038283850,10.71472455,4759.3,4759.2,0.001]
[1756038284145,10.71472395,4759.3,4759.2,0.001]
[1756038284294,11.04359434,4759.3,4759.2,0.001]
[1756038284498,11.60857607,4759.3,4759.2,0.001]
[1756038284732,11.6086747,4759.3,4759.2,0.001]
[1756038284894,11.2996747,4759.3,4759.2,0.001]
[1756038285101,11.29967528,4759.3,4759.2,0.001]
[1756038285331,10.73482014,4759.3,4759.2,0.001]
[1756038286351,10.73482014,4759.3,4759.2,0.3027]
[1756038287098,11.99782014,4759.3,4759.2,0.3027]
[1756038287430,10.73482014,4759.3,4759.2,0.3027]
[1756038288320,10.73482014,4759.3,4759.2,0.001]
[1756038289394,11.48295411,4759.3,4759.2,0.001]
[1756038290896,6.07822096,4759.3,4759.2,0.7427]
[1756038291331,6.64558364,4759.3,4759.2,0.7427]
[1756038291499,6.07822096,4759.3,4759.2,0.7427]
[1756038292732,5.74935057,4759.3,4759.2,0.7427]
[1756038294220,5.74944284,4759.3,4759.2,0.7427]
[1756038294747,0.64829352,4759.3,4759.2,0.7427]
[1756038294912,2.29824912,4759.3,4759.2,0.7427]
[1756038295114,2.29824912,4759.3,4759.2,0.001]
[1756038295115,5.29826238,4759.3,4759.2,0.001]
[1756038295442,6.87540729,4759.3,4759.2,0.3137]
[1756038295941,6.87540729,4759.3,4759.2,0.762]
[1756038296743,6.87540729,4759.3,4759.2,0.3137]
[1756038297047,7.20426858,4759.3,4759.2,0.3137]
[1756038297551,10.73857041,4759.3,4759.2,0.001]
[1756038297731,11.18687041,4759.3,4759.2,0.001]
[1756038300017,10.85800912,4759.3,4759.2,0.001]
[1756038300534,6.87900912,4759.3,4759.2,0.001]
[1756038300731,6.24560912,4759.3,4759.2,0.3137]
[1756038300919,9.77460912,4759.3,4759.2,0.3137]
[1756038301450,9.77460912,4759.3,4759.2,0.001]
[1756038302436,10.53231556,4759.3,4759.2,0.001]
[1756038302755,10.2168667,4759.3,4759.2,0.001]
[1756038302921,10.53258762,4759.3,4759.2,0.001]
[1756038303422,10.86145484,4759.3,4759.2,0.001]
[1756038304143,7.33245484,4759.3,4759.2,0.3137]
[1756038304346,6.95463762,4759.3,4759.2,0.762]
[1756038304546,6.19693118,4759.3,4759.2,0.762]
[1756038306369,6.19692691,4759.3,4759.2,0.762]
[1756038306659,1.09577759,4759.3,4759.2,0.762]
[1756038306819,2.43001654,4759.3,4759.2,0.762]
[1756038307021,5.43001654,4759.3,4759.2,0.762]
[1756038307224,2.88121026,4759.3,4759.2,0.762]
[1756038308260,3.17361026,4759.3,4759.2,0.001]
[1756038308433,3.37083159,4759.3,4759.2,0.001]
[1756038308779,3.82343159,4759.3,4759.2,0.001]
[1756038308958,4.39165238,4759.3,4759.2,0.001]
[1756038309662,4.06278516,4759.3,4759.2,0.001]
[1756038310659,3.49456437,4759.3,4759.2,0.001]
[1756038310849,4.37061104,4759.3,4759.2,0.001]
[1756038312828,4.53220822,4759.3,4759.2,0.001]
[1756038313238,3.77450178,4759.3,4759.2,0.001]
[1756038313442,3.77449405,4759.3,4759.2,0.001]
[1756038314056,4.10338834,4759.3,4759.2,0.001]
[1756038314956,4.8607018,4759.3,4759.2,0.001]
[1756038316244,4.9449568,4759.3,4759.2,0.001]
[1756038317363,10.7289568,4759.3,4759.2,0.001]
[1756038317666,11.0213568,4759.3,4759.2,0.001]
[1756038317867,11.4739568,4759.3,4759.2,0.001]
[1756038319285,11.4739326,4759.3,4759.2,0.001]
[1756038319486,11.0213326,4759.3,4759.2,0.001]
[1756038319698,10.7289326,4759.3,4759.2,0.001]
[1756038321014,11.0213326,4759.3,4759.2,0.001]
[1756038321488,11.4739326,4759.3,4759.2,0.001]
[1756038322660,11.47389336,4759.3,4759.2,0.001]
[1756038322959,11.47389152,4759.3,4759.2,0.001]
[1756038323364,8.47389321,4759.3,4759.2,0.001]
[1756038324653,4.19989321,4759.3,4759.2,0.3143]
[1756038324862,7.72889321,4759.3,4759.2,0.7668]
[1756038325179,7.72889321,4759.3,4759.2,0.3143]
[1756038325377,7.72889504,4759.3,4759.2,0.3143]
[1756038325981,7.72889704,4759.3,4759.2,0.3143]
[1756038326273,11.03009704,4759.3,4759.2,0.001]
[1756038328163,11.03009849,4759.3,4759.2,0.001]
[1756038329069,11.47069938,4759.3,4759.2,0.001]
[1756038329579,11.47069938,4759.3,4758.7,1e-08]
[1756038329580,2.10137009,4758.8,4758.7,1e-08]
[1756038329779,2.1015909,4758.3,4757.7,1e-08]
[1756038329947,2.10207685,4757.2,4757.1,0.04]
[1756038330148,9.58065903,4757.2,4757.1,0.04]
[1756038331243,9.12946531,4757.2,4757.1,0.04]
[1756038331557,10.03589852,4757.2,4757.1,0.04]
[1756038331768,10.79173636,4757.2,4757.1,0.04]
[1756038332393,10.79127039,4757.2,4757.1,0.04]
[1756038333181,11.12031406,4757.2,4757.1,0.04]
[1756038333477,11.12020243,4757.2,4757.1,1e-08]
[1756038333667,11.68761894,4757.2,4757.1,1e-08]
[1756038334489,11.12020243,4757.2,4757.1,1e-08]
[1756038338292,10.92359157,4757.2,4757.1,1e-08]
[1756038338859,11.11985718,4757.2,4757.1,1e-08]
[1756038340594,41.31607054,4757.2,4757.1,1e-08]
[1756038340899,41.55444338,4757.2,4757.1,1e-08]
[1756038341881,42.81744338,4757.2,4757.1,1e-08]
[1756038342258,42.81731543,4757.2,4757.1,1e-08]
[1756038344498,2.10220942,4756.9,4756.8,1e-08]
[1756038344799,39.32576044,4756.9,4756.8,1e-08]
[1756038345110,40.22029365,4756.9,4756.8,1e-08]
[1756038345597,2.10229781,4756.7,4756.6,1e-08]
[1756038345773,40.09501988,4756.7,4756.6,1e-08]
[1756038346162,42.45861988,4756.7,4756.6,1e-08]
[1756038346807,43.02603639,4756.7,4756.6,1e-08]
[1756038346968,43.02603639,4756.7,4755.8,1e-08]
[1756038346969,2.10258451,4756.1,4755.8,1e-08]
[1756038347320,5.40385144,4755.9,4755.8,1e-08]
[1756038347520,36.88641735,4755.9,4755.8,1e-08]
[1756038347877,37.43031829,4755.9,4755.8,1e-08]
[1756038351056,37.99489106,4755.9,4755.8,1e-08]
[1756038351911,38.69331829,4755.9,4755.8,1e-08]
[1756038352113,38.69331829,4755.9,4753.8,0.02]
[1756038352114,6.3657533,4755.7,4755.1,1e-08]
[1756038352299,0.84962524,4755.2,4755.1,1e-08]
[1756038352499,37.77141115,4755.2,4755.1,1e-08]
[1756038352807,40.79483457,4755.2,4755.1,1e-08]
[1756038352998,36.97933457,4755.2,4755.1,0.30260001]
[1756038353198,9.94520933,4755.2,4755.1,0.30260001]
[1756038353528,40.58166842,4755.2,4755.1,0.30260001]
[1756038354135,40.91086995,4755.2,4755.1,0.30260001]
[1756038354337,41.47499519,4755.2,4755.1,0.30260001]
[1756038354525,41.47499519,4755.2,4755.1,1e-08]
[1756038355113,41.76049519,4755.2,4755.1,1e-08]
[1756038355410,41.63746995,4755.2,4755.1,1e-08]
[1756038355631,41.63753907,4755.2,4755.1,1e-08]
[1756038356031,42.90053907,4755.2,4755.1,1e-08]
[1756038357410,43.65270606,4755.2,4755.1,1e-08]
[1756038357807,40.12270606,4755.2,4755.1,1e-08]
[1756038358013,42.92710606,4755.2,4755.1,0.30260001]
[1756038358443,42.17493907,4755.2,4755.1,1e-08]
[1756038359310,2.10309365,4754.9,4754.8,0.4866]
[1756038359511,36.7798011,4754.9,4754.8,0.02]
[1756038359840,40.54897215,4754.9,4754.8,0.3226]
[1756038360040,41.01557215,4754.9,4754.8,0.3226]
[1756038360611,41.01557215,4754.9,4754.8,0.7892]
[1756038361031,37.16933431,4754.9,4754.8,0.3226]
[1756038361340,6.21995266,4754.9,4754.8,0.7892]
[1756038361844,5.75335266,4754.9,4754.8,0.7892]
[1756038362239,5.75337599,4754.9,4754.8,0.7892]
[1756038362917,2.75337599,4754.9,4754.8,0.7892]
[1756038363913,5.75337599,4754.9,4754.8,0.7892]
[1756038366447,9.28437599,4754.9,4754.8,0.3226]
[1756038367524,9.56987599,4754.9,4754.8,0.02]
[1756038367849,10.20778131,4754.9,4754.8,0.02]
[1756038368216,9.76668131,4754.9,4754.8,0.02]
[1756038368418,9.48118131,4754.9,4754.8,0.02]
[1756038368935,9.76668131,4754.9,4754.8,0.02]
[1756038369442,10.52060448,4754.9,4754.8,0.02]
[1756038370152,11.02820448,4754.9,4754.8,0.02]
[1756038370449,9.98878131,4754.9,4754.8,0.02]
[1756038370649,9.98878131,4754.9,4754.8,0.3226]
[1756038370650,5.95018131,4754.9,4754.8,0.3226]
[1756038370828,5.75360589,4754.9,4754.8,0.7892]
[1756038371030,5.95057898,4754.9,4754.8,0.7892]
[1756038371422,5.95063736,4754.9,4754.8,0.7892]
[1756038371927,6.70653809,4754.9,4754.8,0.7892]
[1756038372531,5.95063736,4754.9,4754.8,0.7892]
[1756038375172,5.95063736,4754.9,4754.8,0.3226]
[1756038376658,9.48163736,4754.9,4754.8,0.3226]
[1756038377633,5.95063736,4754.9,4754.8,0.3226]
[1756038378636,5.95063736,4754.9,4754.8,0.3236]
[1756038379679,5.95063736,4754.9,4754.8,0.7902]
[1756038379680,5.95123369,4754.9,4754.8,0.7902]
[1756038380243,5.95123369,4754.9,4754.8,0.3236]
[1756038380872,5.95219697,4754.9,4754.8,0.3236]
[1756038381562,6.70978981,4754.9,4754.8,0.3236]
[1756038382881,6.51250292,4754.9,4754.8,0.3236]
[1756038383077,6.31521603,4754.9,4754.8,0.3236]
[1756038383466,5.55762319,4754.9,4754.8,0.3236]
[1756038385250,5.55762319,4754.9,4754.8,0.021]
[1756038385756,5.55762319,4754.9,4754.8,0.3178]
[1756038386278,5.55762319,4754.9,4754.8,0.7525]
[1756038386495,5.95226083,4754.9,4754.8,0.7525]
[1756038386702,5.95225619,4754.9,4754.8,0.7525]
[1756038386866,5.95225077,4754.9,4754.8,0.7525]
[1756038389113,2.95225077,4754.9,4754.8,0.7525]
[1756038389599,3.52054863,4754.9,4754.8,0.7525]
[1756038389797,3.52054863,4754.9,4754.8,0.3178]
[1756038392182,6.52054863,4754.9,4754.8,0.3178]
[1756038394314,6.32332396,4754.9,4754.8,0.3178]
[1756038394486,6.52072687,4754.9,4754.8,0.3178]
[1756038394890,6.52072696,4754.9,4754.8,0.3178]
[1756038397493,0.65193245,4754.9,4754.8,0.7525]
[1756038397703,3.19740291,4754.9,4754.8,0.7525]
[1756038397904,3.65193245,4754.9,4754.8,0.7525]
[1756038398105,2.7550261,4754.9,4754.8,0.7525]
[1756038398512,0.65193245,4754.9,4754.8,0.7525]
[1756038398834,2.75500111,4755.0,4754.8,0.7525]
[1756038399036,0.65193245,4754.9,4754.8,0.7525]
[1756038399242,0.19740291,4754.9,4754.8,0.7525]
[1756038399535,3.19740291,4754.9,4754.8,0.7525]
[1756038399695,2.7550261,4754.9,4754.8,0.7525]
[1756038400939,0.65193245,4754.9,4754.8,0.7525]
[1756038401105,5.7550261,4754.9,4754.8,0.7525]
[1756038401632,3.65193245,4754.9,4754.8,0.7525]
[1756038402400,3.98108035,4754.9,4754.8,0.7525]
[1756038403221,3.3291479,4754.9,4754.8,1.81964]
[1756038403432,0.002,4755.6,4754.9,0.66]
[1756038403745,0.002,4755.6,4755.5,0.2968]
[1756038404105,0.002,4755.6,4755.5,0.7315]
[1756038404301,0.002,4755.6,4755.5,1.3915]
[1756038406807,2.10478408,4755.6,4755.5,1.3915]
[1756038407233,0.002,4755.6,4755.5,1.3915]
[1756038407534,5.41618408,4755.6,4754.9,1.618]
[1756038407851,2.85278408,4755.6,4754.9,1.618]
[1756038408431,2.10291236,4755.4,4754.9,1.618]
[1756038408638,2.10292782,4755.3,4754.9,1.618]
[1756038408833,2.10286993,4755.5,4754.9,1.618]
[1756038409056,2.10289318,4755.4,4754.9,1.618]
[1756038409209,3.0,4755.5,4754.9,1.618]
[1756038409408,2.10296237,4755.2,4754.9,1.618]
[1756038412226,2.1029225,4755.3,4754.9,1.618]
[1756038413450,2.10296203,4755.2,4754.9,1.618]
[1756038415626,2.56642448,4755.3,4754.9,1.618]
[1756038416360,0.4635,4755.3,4754.9,1.618]
[1756038416673,2.10301118,4755.1,4754.9,1.618]
[1756038417261,2.10297597,4755.2,4754.9,1.618]
[1756038417427,2.56642715,4755.3,4754.9,1.618]
[1756038417626,2.10296155,4755.2,4754.9,1.618]
[1756038418365,2.56641792,4755.3,4754.9,1.618]
[1756038418663,2.10296953,4755.2,4754.9,1.618]
[1756038419084,0.4635,4755.3,4754.9,1.618]
[1756038419279,2.56641824,4755.3,4754.9,1.618]
[1756038419569,0.2866,4755.0,4754.9,1.618]
[1756038419729,0.2866,4755.0,4754.9,5.147]
[1756038420636,2.38964942,4755.0,4754.9,5.147]
[1756038420841,0.7501,4755.0,4754.9,5.147]
[1756038421366,5.85314942,4755.0,4754.9,3.529]
[1756038421574,6.4386591,4755.0,4754.9,3.529]
[1756038421782,6.76781234,4755.0,4754.9,3.529]
[1756038422074,5.10309365,4754.9,4754.8,0.021]
[1756038422275,6.5040383,4754.9,4754.8,0.021]
[1756038422436,6.87022555,4754.9,4754.8,0.021]
[1756038422966,6.87025031,4754.9,4754.8,0.021]
[1756038423168,7.06727253,4754.9,4754.8,0.021]
[1756038423569,7.06726629,4754.9,4754.8,0.021]
[1756038423862,10.59626629,4754.9,4754.8,0.021]
[1756038424251,10.39925322,4754.9,4754.8,0.021]
[1756038424453,10.59624483,4754.9,4754.8,0.021]
[1756038428059,11.16454269,4754.9,4754.8,0.021]
[1756038428253,10.59624483,4754.9,4754.8,0.021]
[1756038429281,41.16321959,4754.9,4754.8,0.021]
[1756038429604,40.71436467,4754.9,4754.8,0.021]
[1756038430202,40.71436467,4754.9,4754.8,1e-08]
[1756038430509,40.59624483,4754.9,4754.8,1e-08]
[1756038432611,40.20224015,4754.9,4754.8,1e-08]
[1756038432791,40.59562869,4754.9,4754.8,1e-08]
[1756038433370,40.5956113,4754.9,4754.8,1e-08]
[1756038433568,41.66391703,4754.9,4754.8,1e-08]
[1756038433773,41.86056921,4754.9,4754.8,1e-08]
[1756038434081,41.94491321,4754.9,4754.8,1e-08]
[1756038435779,2.10318211,4754.7,4754.6,1e-08]
[1756038435980,2.10327058,4754.5,4754.4,1e-08]
[1756038436212,41.38405889,4754.5,4754.4,1e-08]
[1756038436419,2.1034033,4754.2,4754.1,0.04]
[1756038436578,9.56953943,4754.2,4754.1,1e-08]
[1756038436913,38.23087987,4754.2,4754.1,1e-08]
[1756038437112,41.84423187,4754.2,4754.1,1e-08]
[1756038438000,41.84423187,4754.2,4751.8,1e-08]
[1756038438001,4.20733758,4753.6,4751.8,1e-08]
[1756038438181,2.39057862,4752.9,4751.8,1e-08]
[1756038438381,9.57011475,4752.9,4751.8,1e-08]
[1756038438576,10.4849544,4752.9,4751.8,1e-08]
[1756038438778,10.9484544,4752.9,4751.8,1e-08]
[1756038439204,10.9484544,4752.9,4751.8,0.43280001]
[1756038439409,10.94824951,4752.9,4751.8,0.43280001]
[1756038440112,10.48474951,4752.9,4752.1,0.4728]
[1756038441083,10.19814951,4752.9,4752.8,0.3357]
[1756038441283,9.74429026,4752.9,4752.8,0.3357]
[1756038441496,9.74429026,4752.9,4752.8,0.02]
[1756038441692,10.28851827,4752.9,4752.8,0.02]
[1756038442478,9.83441827,4752.9,4752.8,0.02]
[1756038442682,6.30541827,4752.9,4752.8,0.02]
[1756038442892,10.28851827,4752.9,4752.8,0.02]
[1756038443235,10.71611827,4752.9,4752.8,0.02]
[1756038445834,11.36443168,4752.9,4752.8,0.02]
[1756038446221,2.10428854,4752.2,4752.1,0.04]
[1756038446406,2.40128854,4752.2,4752.1,0.04]
[1756038446611,2.10428854,4752.2,4752.1,0.04]
[1756038446809,2.43365331,4752.2,4752.1,0.04]
[1756038447013,9.25965331,4752.2,4752.1,0.04]
[1756038447226,10.29926299,4752.2,4752.1,0.04]
[1756038447626,40.29926299,4752.2,4752.1,0.04]
[1756038447947,40.75151011,4752.2,4752.1,0.04]
[1756038448126,40.94783666,4752.2,4752.1,0.04]
[1756038448334,36.96473666,4752.2,4752.1,0.04]
[1756038448529,40.49373666,4752.2,4752.1,0.04]
[1756038449749,40.94783666,4752.2,4752.1,0.04]
[1756038450836,41.03221966,4752.2,4752.1,0.04]
[1756038452226,42.29721966,4752.2,4752.1,0.04]
[1756038452532,40.57811966,4752.2,4752.1,0.04]
[1756038453538,40.28118126,4752.2,4752.1,0.3552]
[1756038453718,10.28118126,4752.2,4752.1,0.3552]
[1756038454034,6.08227053,4752.2,4752.1,0.3552]
[1756038454355,9.61127053,4752.2,4752.1,0.3552]
[1756038454647,9.61127053,4752.2,4752.1,0.7828]
[1756038454833,9.61127053,4752.2,4752.1,0.3552]
[1756038455510,6.08227053,4752.2,4752.1,0.7828]
[1756038456214,6.08227053,4752.2,4752.1,0.3552]
[1756038460043,6.08227053,4752.2,4752.1,0.04]
[1756038460246,6.64837722,4752.2,4752.1,0.04]
[1756038461224,6.64837722,4752.2,4752.1,0.3552]
[1756038462020,6.64837722,4752.2,4752.1,0.7828]
[1756038462361,6.08328038,4752.2,4752.1,0.7828]
[1756038462534,6.28007172,4752.2,4752.1,0.3552]
[1756038462721,6.08328038,4752.2,4752.1,0.7828]
[1756038463113,6.08328038,4752.2,4752.1,0.3552]
[1756038463313,6.6505583,4752.2,4752.1,0.3552]
[1756038464040,6.65056792,4752.2,4752.1,0.04]
[1756038465350,6.28092904,4752.2,4752.1,0.04]
[1756038465640,6.28092904,4752.2,4752.1,0.3552]
[1756038471045,6.28092904,4752.2,4752.1,0.04]
[1756038471247,7.03202904,4752.2,4752.1,0.04]
[1756038471734,6.57792904,4752.2,4752.1,0.04]
[1756038472134,6.28092904,4752.2,4752.1,0.04]
[1756038472551,6.28092904,4752.2,4752.1,0.3313]
[1756038472862,6.28092904,4752.2,4752.1,0.7942]
[1756038473069,6.28092904,4752.2,4752.1,0.3313]
[1756038473362,6.08435743,4752.2,4752.1,0.7942]
[1756038473545,6.28180458,4752.2,4752.1,0.7942]
[1756038473923,6.28182756,4752.2,4752.1,0.7942]
[1756038474873,6.28182756,4752.2,4752.1,0.3313]
[1756038475173,6.85057402,4752.2,4752.1,0.3313]
[1756038476366,7.16647402,4752.2,4752.1,0.04]
[1756038476522,6.40025743,4752.2,4752.1,0.04]
[1756038476730,6.59779107,4752.2,4752.1,0.04]
[1756038476937,7.02599107,4752.2,4752.1,0.04]
[1756038477472,7.16668397,4752.2,4752.1,0.04]
[1756038478155,6.85078397,4752.2,4752.1,0.04]
[1756038479180,6.85078397,4752.2,4752.1,0.3313]
[1756038479861,6.85078899,4752.2,4752.1,0.3313]
[1756038480273,7.16668899,4752.2,4752.1,0.04]
[1756038480514,6.85078899,4752.2,4752.1,0.3313]
[1756038481326,6.85078899,4752.2,4752.1,0.04]
[1756038482254,6.85088984,4752.2,4752.1,0.04]
[1756038482762,6.85089631,4752.2,4752.1,0.3313]
[1756038483157,6.85090244,4752.2,4752.1,0.3313]
[1756038485541,6.85091368,4752.2,4752.1,0.3313]
[1756038486762,6.85091368,4752.2,4752.1,0.04]
[1756038487752,6.85091368,4752.2,4752.1,0.3313]
[1756038488472,4.17773224,4752.2,4752.1,0.3313]
[1756038488634,6.28202078,4752.2,4752.1,0.3313]
[1756038489028,6.08446008,4752.2,4752.1,0.3313]
[1756038492069,6.08450863,4752.2,4752.1,0.3313]
[1756038492366,6.08450863,4752.2,4752.1,0.7942]
[1756038492866,5.88691028,4752.2,4752.1,0.7942]
[1756038494051,5.88691028,4752.2,4752.1,0.3313]
[1756038496668,6.20281028,4752.2,4752.1,0.04]
[1756038496970,7.39750222,4752.2,4752.1,0.04]
[1756038497569,7.39750222,4752.2,4752.1,0.041]
[1756038501944,7.19990318,4752.2,4752.1,0.041]
[1756038502144,7.39752501,4752.2,4752.1,0.041]
[1756038503081,7.06816392,4752.2,4752.1,0.041]
[1756038503745,6.58364502,4752.2,4752.1,0.041]
[1756038504659,7.0316019,4752.2,4752.1,0.041]
[1756038504862,7.78641082,4752.2,4752.1,0.041]
[1756038506358,7.78641082,4752.2,4752.1,1e-08]
[1756038506564,7.0316019,4752.2,4752.1,1e-08]
[1756038507488,8.16939424,4752.2,4752.1,1e-08]
[1756038508682,8.16929726,4752.2,4752.1,1e-08]
[1756038509152,7.03150492,4752.2,4752.1,1e-08]
[1756038511763,38.16929726,4752.2,4752.1,1e-08]
[1756038511996,38.0508126,4752.2,4752.1,1e-08]
[1756038512187,38.16897989,4752.2,4752.1,1e-08]
[1756038512392,37.03118755,4752.2,4752.1,1e-08]
[1756038512580,38.29618755,4752.2,4752.1,1e-08]
[1756038513075,38.29615555,4752.2,4752.1,1e-08]
[1756038515615,38.29605633,4752.2,4752.1,1e-08]
[1756038516014,39.43384867,4752.2,4752.1,1e-08]
[1756038518209,38.29605633,4752.2,4752.1,1e-08]
[1756038518922,41.82305633,4752.2,4752.1,1e-08]
[1756038521194,41.82300839,4752.2,4752.1,1e-08]
[1756038521787,41.70468324,4752.2,4752.1,1e-08]
[1756038521989,38.29592819,4752.2,4752.1,1e-08]
[1756038522220,41.39472819,4752.2,4752.1,1e-08]
[1756038522527,36.28683084,4752.2,4752.1,0.30110001]
[1756038522683,39.81383084,4752.2,4752.1,0.30110001]
[1756038522888,39.81383489,4752.2,4752.1,0.30110001]
[1756038523689,39.81383489,4752.2,4752.1,1e-08]
[1756038524089,36.28683489,4752.2,4752.1,0.30110001]
[1756038524320,39.81383489,4752.2,4752.1,0.30110001]
[1756038525201,39.81283489,4752.2,4752.1,0.30110001]
[1756038525720,9.81283489,4752.2,4752.1,0.30110001]
[1756038526027,39.81283489,4752.2,4752.1,0.30110001]
[1756038526327,40.95062723,4752.2,4752.1,1e-08]
[1756038526616,40.95062723,4752.2,4752.1,0.30110001]
[1756038526826,39.81283489,4752.2,4752.1,0.30110001]
[1756038527191,39.81283489,4752.2,4752.1,1e-08]
[1756038528886,39.81283489,4752.2,4752.1,0.30110001]
[1756038529348,36.28683489,4752.2,4752.1,0.30110001]
[1756038529529,39.81283489,4752.2,4752.1,0.30110001]
[1756038530806,36.28683489,4752.2,4752.1,0.30110001]
[1756038531212,39.81283489,4752.2,4752.1,0.76370001]
[1756038531643,39.81483489,4752.2,4752.1,0.76370001]
[1756038531842,39.61774018,4752.2,4752.1,0.76370001]
[1756038532142,36.28914924,4752.2,4752.1,0.30110001]
[1756038532351,39.81514924,4752.2,4752.1,0.30110001]
[1756038532696,6.28914924,4752.2,4752.1,0.30110001]
[1756038532926,6.96294765,4752.2,4752.1,0.74100001]
[1756038534841,10.48894765,4752.2,4752.1,0.74100001]
[1756038535341,6.96294765,4752.2,4752.1,0.74100001]
[1756038538457,6.20485854,4752.2,4752.1,0.74100001]
[1756038538820,6.96303095,4752.2,4752.1,0.74100001]
[1756038539347,6.20485854,4752.2,4752.1,0.74100001]
[1756038541129,6.00740453,4752.2,4752.1,0.74100001]
[1756038541330,6.20487739,4752.2,4752.1,0.74100001]
[1756038541726,6.20486349,4752.2,4752.1,0.74100001]
[1756038543460,6.20486349,4752.2,4752.1,0.30110001]
[1756038543660,6.08637971,4752.2,4752.1,0.30110001]
[1756038543961,6.08637971,4752.2,4752.1,1e-08]
[1756038544177,6.20484181,4752.2,4752.1,1e-08]
[1756038544469,11.24001422,4752.2,4752.1,1e-08]
[1756038544772,11.87283522,4752.2,4752.1,1e-08]
[1756038546959,8.34783522,4752.2,4752.1,1e-08]
[1756038547156,11.11466281,4752.2,4752.1,1e-08]
[1756038547937,11.87283522,4752.2,4752.1,1e-08]
[1756038549068,11.11466281,4752.2,4752.1,1e-08]
[1756038549258,11.87283522,4752.2,4752.1,1e-08]
[1756038549952,11.12083522,4752.2,4752.1,0.31270001]
[1756038550289,10.36266281,4752.2,4752.1,0.31270001]
[1756038550789,10.36267151,4752.2,4752.1,0.31270001]
[1756038551159,1.61491127,4752.2,4752.1,0.31270001]
[1756038551360,0.33137524,4752.2,4752.1,0.75260001]
[1756038551559,0.33137524,4752.2,4752.1,1.51291065]
[1756038553404,0.002,4752.7,4752.1,1.51291065]
[1756038553567,0.002,4752.7,4752.4,2.10418531]
[1756038553765,0.002,4752.7,4752.6,0.3127]
[1756038554095,0.002,4752.7,4752.6,0.59838829]
[1756038554391,0.002,4752.7,4752.6,1.03828829]
[1756038554605,0.002,4752.7,4752.6,1.12264029]
[1756038559180,0.002,4752.7,4752.6,0.68274029]
[1756038567054,0.002,4752.7,4752.6,3.89145172]
[1756038570529,0.002,4752.7,4752.6,6.96885172]
[1756038570726,0.002,4752.7,4752.6,7.41345172]
[1756038570944,0.002,4752.7,4752.6,6.30885172]
[1756038571627,0.002,4752.7,4752.6,7.41345172]
[1756038573576,0.002,4752.7,4752.6,10.73135169]
[1756038575703,0.002,4752.7,4752.6,4.34794026]
[1756038575976,0.002,4752.7,4752.6,9.97405169]
[1756038576141,0.002,4752.7,4752.6,10.28355169]
[1756038579374,0.002,4752.7,4752.6,6.96565172]
[1756038583745,0.002,4752.7,4752.6,3.44365172]
[1756038583953,0.002,4752.7,4752.6,5.99515172]
[1756038583954,0.7537,4752.7,4752.6,5.99515172]
[1756038584767,0.002,4752.7,4752.6,5.99515172]
[1756038585080,0.002,4752.7,4752.6,6.30465172]
[1756038585237,0.002,4752.7,4752.6,6.96465172]
[1756038585442,0.002,4752.7,4752.6,7.40925172]
[1756038588782,0.002,4752.7,4752.6,10.72715169]
[1756038590981,0.002,4752.8,4752.7,2.76406716]
[1756038591188,0.002,4752.8,4752.7,5.66004516]
[1756038591488,0.002,4753.2,4753.1,2.76389009]
[1756038591680,0.002,4753.2,4753.1,11.53029006]
[1756038592006,0.002,4753.2,4753.1,12.06829006]
[1756038592210,0.002,4753.2,4753.1,12.15260706]
[1756038592409,0.002,4753.2,4753.1,14.00285804]